bitfinex-derivatives/quotes_BTCF0:USTF0_20250614
["timestamp","ask_amount","ask_price","bid_price","bid_amount"]
[1749936193597,1.67716615,105140.0,105130.0,0.2901696]
[1749936193799,1.67716615,105140.0,105130.0,0.1]
[1749936193997,1.66714117,105140.0,105130.0,0.2901696]
[1749936194199,1.66714117,105140.0,105130.0,0.103]
[1749936194200,1.76225317,105140.0,105130.0,0.103]
[1749936194408,1.76225317,105140.0,105130.0,0.0531]
[1749936194708,2.87649023,105140.0,105130.0,0.0531]
[1749936195005,2.90781023,105140.0,105130.0,0.0531]
[1749936196008,3.00781023,105140.0,105130.0,0.0531]
[1749936196213,2.91269823,105140.0,105130.0,0.0531]
[1749936196713,3.00781403,105140.0,105130.0,0.0531]
[1749936196913,2.90781403,105140.0,105130.0,0.0531]
[1749936197812,2.91816613,105140.0,105130.0,0.0531]
[1749936198815,1.94728613,105140.0,105130.0,0.0531]
[1749936199118,3.01888613,105140.0,105130.0,0.0531]
[1749936200112,2.04728613,105140.0,105130.0,0.0531]
[1749936200314,3.01880613,105140.0,105130.0,0.0531]
[1749936201418,3.21599175,105140.0,105130.0,0.0531]
[1749936201617,0.1901696,105130.0,105120.0,0.00014255]
[1749936201821,0.87525917,105130.0,105120.0,0.00014255]
[1749936202116,1.21293081,105130.0,105120.0,0.00014255]
[1749936202322,1.26293081,105130.0,105120.0,0.00014255]
[1749936202522,1.35804661,105130.0,105120.0,0.00014255]
[1749936202914,1.35804661,105130.0,105120.0,0.00314255]
[1749936203118,1.26291861,105130.0,105120.0,0.00314255]
[1749936203315,1.36304661,105130.0,105120.0,0.00314255]
[1749936203517,1.36304661,105130.0,105120.0,0.01625727]
[1749936203818,0.4754693,105120.0,105070.0,0.4559341]
[1749936204120,0.1902782,105070.0,105060.0,0.268556]
[1749936204317,0.1902963,105060.0,105050.0,0.2545098]
[1749936204521,0.72646752,105060.0,105050.0,0.2545098]
[1749936204722,0.75686752,105060.0,105050.0,0.2545098]
[1749936204921,1.54822752,105060.0,105050.0,0.1903098]
[1749936206012,1.54822752,105060.0,105050.0,0.1923098]
[1749936206623,0.00014255,105070.0,105060.0,0.1902963]
[1749936206813,0.19042075,105070.0,105060.0,0.2230963]
[1749936207014,0.00014255,105070.0,105060.0,0.9603723]
[1749936207326,0.00014255,105070.0,105060.0,1.22316187]
[1749936207625,0.00014255,105070.0,105060.0,1.1419723]
[1749936207813,0.00014255,105070.0,105060.0,0.9603723]
[1749936208018,0.00114255,105070.0,105060.0,1.40476187]
[1749936208415,0.00114255,105070.0,105060.0,1.1419723]
[1749936209226,0.00114255,105070.0,105060.0,1.1439723]
[1749936209626,0.00014255,105070.0,105060.0,1.1439723]
[1749936209826,0.00014255,105070.0,105060.0,1.1499723]
[1749936210129,0.19042025,105070.0,105060.0,0.7183723]
[1749936210328,0.19042025,105070.0,105060.0,0.9073723]
[1749936213130,0.19042025,105070.0,105060.0,0.2623963]
[1749936213431,0.19042025,105070.0,105060.0,0.4513963]
[1749936213826,0.45320982,105070.0,105060.0,0.2623963]
[1749936214027,1.00300982,105070.0,105060.0,0.2295963]
[1749936214231,1.06510982,105070.0,105060.0,0.2235963]
[1749936214436,1.85578982,105070.0,105060.0,0.1942963]
[1749936214629,1.59300025,105070.0,105060.0,0.1942963]
[1749936214932,1.59300025,105070.0,105060.0,0.1922963]
[1749936215132,1.59400025,105070.0,105060.0,0.1922963]
[1749936215632,1.59404025,105070.0,105060.0,0.1922963]
[1749936216434,1.59404025,105070.0,105060.0,0.20707276]
[1749936216839,1.59404025,105070.0,105060.0,0.20707275]
[1749936217039,1.85682982,105070.0,105060.0,0.20707275]
[1749936217335,1.59404025,105070.0,105060.0,0.20707277]
[1749936217832,1.59404025,105070.0,105060.0,0.1922963]
[1749936218037,1.59404025,105070.0,105060.0,0.20707277]
[1749936218339,1.59404025,105070.0,105060.0,0.1922963]
[1749936218741,1.59404025,105070.0,105060.0,0.20693478]
[1749936219245,1.59404025,105070.0,105060.0,0.1922963]
[1749936219641,1.59404025,105070.0,105060.0,0.20693681]
[1749936219941,1.59404025,105070.0,105060.0,0.1922963]
[1749936220443,1.59404025,105070.0,105060.0,0.20693681]
[1749936220642,1.59404025,105070.0,105060.0,0.1922963]
[1749936221043,1.59404025,105070.0,105060.0,0.20693692]
[1749936221235,1.59404025,105070.0,105060.0,0.20693727]
[1749936221440,0.61432025,105070.0,105060.0,0.20693721]
[1749936221748,1.85582982,105070.0,105060.0,0.25136836]
[1749936221938,1.85582982,105070.0,105060.0,0.25137078]
[1749936222238,1.85582982,105070.0,105060.0,0.23672745]
[1749936222638,1.85582982,105070.0,105060.0,0.25139457]
[1749936222846,1.85582982,105070.0,105060.0,0.25139511]
[1749936223036,1.85582982,105070.0,105060.0,0.23672745]
[1749936223236,1.85582982,105070.0,105060.0,0.25139512]
[1749936223541,1.85582982,105070.0,105060.0,0.25139516]
[1749936223742,1.85582982,105070.0,105060.0,0.23672745]
[1749936223938,1.85582982,105070.0,105060.0,0.25139516]
[1749936224140,1.59304025,105070.0,105060.0,0.23672745]
[1749936224338,1.59304025,105070.0,105060.0,0.25139515]
[1749936225136,0.61432025,105070.0,105060.0,0.25139515]
[1749936225538,1.59216025,105070.0,105060.0,0.25139515]
[1749936225843,1.85494982,105070.0,105060.0,0.25139512]
[1749936226037,1.85494982,105070.0,105060.0,0.23672745]
[1749936226233,1.85494982,105070.0,105060.0,0.25139457]
[1749936226435,1.85494982,105070.0,105060.0,0.25139425]
[1749936226735,1.85494982,105070.0,105060.0,0.23672745]
[1749936226935,1.85494982,105070.0,105060.0,0.25139263]
[1749936227139,0.61432025,105070.0,105060.0,0.23672745]
[1749936227347,1.59216025,105070.0,105060.0,0.25139183]
[1749936227536,1.59216025,105070.0,105060.0,0.25139172]
[1749936227844,1.59216025,105070.0,105060.0,0.25152995]
[1749936228038,1.59216025,105070.0,105060.0,0.25152956]
[1749936229035,1.59216025,105070.0,105060.0,0.23672745]
[1749936229236,1.59216025,105070.0,105060.0,0.25152956]
[1749936229435,1.59216025,105070.0,105060.0,0.25152958]
[1749936229732,1.59216025,105070.0,105060.0,0.29512081]
[1749936229938,1.59216025,105070.0,105060.0,0.29512087]
[1749936230138,1.59216025,105070.0,105060.0,0.29512094]
[1749936230344,1.59216025,105070.0,105060.0,0.28031859]
[1749936230536,1.59216025,105070.0,105060.0,0.10482516]
[1749936230742,1.85494982,105070.0,105060.0,0.06123445]
[1749936231144,2.67758982,105070.0,105060.0,0.06123558]
[1749936231343,2.67758982,105070.0,105060.0,0.06123675]
[1749936231546,2.67758982,105070.0,105060.0,0.06123694]
[1749936231748,2.67758982,105070.0,105060.0,0.04643115]
[1749936232041,2.68362249,105070.0,105060.0,0.04643115]
[1749936232745,2.82718987,105070.0,105060.0,0.04643115]
[1749936233140,2.82718987,105070.0,105060.0,0.05958038]
[1749936233445,2.92236588,105070.0,105060.0,0.05960365]
[1749936233641,2.92092588,105070.0,105060.0,0.04665423]
[1749936233845,2.92092588,105070.0,105060.0,0.05982841]
[1749936234148,2.82574987,105070.0,105060.0,0.05982538]
[1749936234336,2.82574987,105070.0,105060.0,0.04665423]
[1749936234540,2.82574987,105070.0,105060.0,0.05987881]
[1749936234846,2.82574987,105070.0,105060.0,0.05987911]
[1749936235047,2.82574987,105070.0,105060.0,0.31265423]
[1749936235248,3.41610505,105070.0,105060.0,0.28124679]
[1749936235439,3.41610505,105070.0,105060.0,0.2112169]
[1749936235636,3.61515184,105070.0,105060.0,0.17473645]
[1749936235834,3.73199707,105070.0,105060.0,0.1286863]
[1749936236035,3.73199707,105070.0,105060.0,0.06709375]
[1749936236237,3.73199707,105070.0,105060.0,0.0263342]
[1749936236642,0.1903139,105050.0,105040.0,0.00014255]
[1749936236840,3.07021509,105050.0,105040.0,0.0437412]
[1749936237043,3.3535444,105050.0,105040.0,0.0437412]
[1749936237846,3.3535444,105050.0,105040.0,0.0457412]
[1749936239040,3.3535444,105050.0,105040.0,0.0507412]
[1749936239542,3.3555444,105050.0,105040.0,0.0457412]
[1749936239743,3.43058865,105050.0,105040.0,0.05884039]
[1749936240049,3.43058865,105050.0,105040.0,0.05885351]
[1749936240261,3.43058865,105050.0,105040.0,0.0568536]
[1749936240547,0.190332,105040.0,105030.0,9.733e-05]
[1749936240742,0.87582157,105040.0,105030.0,0.01327753]
[1749936240941,0.87657538,105040.0,105030.0,0.01327753]
[1749936241451,0.87657538,105040.0,105030.0,0.01328328]
[1749936241851,0.87757538,105040.0,105030.0,0.01329245]
[1749936242151,1.41169238,105040.0,105030.0,0.01420045]
[1749936242450,0.1903865,105010.0,105000.0,0.29712442]
[1749936242651,1.5261065,105010.0,105000.0,0.237995]
[1749936242846,1.81899607,105010.0,105000.0,0.25106169]
[1749936243166,0.1904046,105000.0,104990.0,0.53264075]
[1749936243351,0.1904046,105000.0,104990.0,0.54575645]
[1749936243658,0.19115841,105000.0,104990.0,0.44394662]
[1749936244557,0.19115841,105000.0,104990.0,0.44894662]
[1749936245360,0.19115841,105000.0,104990.0,0.45794662]
[1749936245549,1.16615841,105000.0,104990.0,0.45794662]
[1749936246460,1.19795841,105000.0,104990.0,0.45794662]
[1749936246660,0.19115841,105000.0,104990.0,0.3988172]
[1749936246869,1.16587821,105000.0,104990.0,0.3988172]
[1749936248764,0.37811821,105000.0,104990.0,0.44311688]
[1749936249364,0.37811821,105000.0,104990.0,0.80391688]
[1749936249663,0.37811821,105000.0,104990.0,0.44311688]
[1749936251460,0.37811821,105000.0,104990.0,0.05829968]
[1749936251674,1.06580778,105000.0,104990.0,0.05829968]
[1749936252074,1.06580778,105000.0,104990.0,0.014]
[1749936252674,1.06580778,105000.0,104990.0,0.2044225]
[1749936252875,1.06580778,105000.0,104990.0,0.1994225]
[1749936253070,1.06580778,105000.0,104990.0,0.2044225]
[1749936253572,1.06580778,105000.0,104990.0,0.1994225]
[1749936253771,1.06680778,105000.0,104990.0,0.1994225]
[1749936254973,1.06680778,105000.0,104990.0,0.1994223]
[1749936255174,0.1904223,104990.0,104980.0,0.3332532]
[1749936255372,0.87851187,104990.0,104980.0,0.37755094]
[1749936255772,0.87926568,104990.0,104980.0,0.37755094]
[1749936256173,1.66726568,104990.0,104980.0,0.37755094]
[1749936256371,1.66726568,104990.0,104980.0,0.37855094]
[1749936256570,1.66726568,104990.0,104980.0,0.191425]
[1749936256768,1.74190123,104990.0,104980.0,0.003]
[1749936256975,1.77430123,104990.0,104980.0,0.1934405]
[1749936257375,1.96270123,104990.0,104980.0,0.1934405]
[1749936258869,1.69991166,104990.0,104980.0,0.1934405]
[1749936259174,1.96270123,104990.0,104980.0,0.1934405]
[1749936259876,0.33031166,104990.0,104980.0,0.1934405]
[1749936260182,1.30803166,104990.0,104980.0,0.1934405]
[1749936260480,1.57070123,104990.0,104980.0,0.1934405]
[1749936260679,1.93150123,104990.0,104980.0,0.003]
[1749936260878,2.07361351,104990.0,104980.0,0.003]
[1749936261178,2.12361351,104990.0,104980.0,0.003]
[1749936261986,2.07361351,104990.0,104980.0,0.003]
[1749936265981,2.10601351,104990.0,104980.0,0.003]
[1749936269887,2.10676732,104990.0,104980.0,0.003]
[1749936270992,2.25201902,104990.0,104980.0,0.003]
[1749936275395,1.27441902,104990.0,104980.0,0.003]
[1749936275595,2.25441902,104990.0,104980.0,0.003]
[1749936275894,1.27441902,104990.0,104980.0,0.003]
[1749936276095,2.25441902,104990.0,104980.0,0.003]
[1749936277192,2.21682174,104990.0,104980.0,0.003]
[1749936279496,2.31782174,104990.0,104980.0,0.001]
[1749936280091,0.1904743,104960.0,104950.0,0.71627355]
[1749936280390,0.19122811,104960.0,104950.0,0.5715926]
[1749936281195,0.19122811,104960.0,104950.0,0.5745926]
[1749936281390,0.19122811,104960.0,104950.0,0.4793454]
[1749936281587,0.19122811,104960.0,104950.0,0.4843551]
[1749936281894,0.4164204,104960.0,104950.0,0.20516847]
[1749936282596,0.4472204,104960.0,104950.0,0.20516847]
[1749936283096,0.4472204,104960.0,104950.0,0.39566087]
[1749936283301,0.4472204,104960.0,104950.0,0.20516847]
[1749936283489,0.48447802,104960.0,104950.0,0.11136847]
[1749936283797,1.66867802,104960.0,104950.0,0.05223905]
[1749936284298,1.81166819,104960.0,104950.0,0.008]
[1749936284898,2.03686048,104960.0,104950.0,0.008]
[1749936289405,2.18686048,104960.0,104950.0,0.008]
[1749936293112,2.08686048,104960.0,104950.0,0.008]
[1749936293302,3.06542048,104960.0,104950.0,0.008]
[1749936293608,3.06522048,104960.0,104950.0,0.008]
[1749936294504,3.1604994,104960.0,104950.0,0.02273906]
[1749936295103,3.1604994,104960.0,104950.0,0.022739]
[1749936295407,3.1604994,104960.0,104950.0,0.0227391]
[1749936295601,3.1604994,104960.0,104950.0,0.02273914]
[1749936295813,3.1604994,104960.0,104950.0,0.02273912]
[1749936296002,2.1821394,104960.0,104950.0,0.008]
[1749936296201,2.98518711,104960.0,104950.0,0.008]
[1749936296411,2.78998819,104960.0,104950.0,0.008]
[1749936296597,2.78998819,104960.0,104950.0,0.0227653]
[1749936296796,1.81166819,104960.0,104950.0,0.0227653]
[1749936297001,2.72840819,104960.0,104950.0,0.008]
[1749936297203,2.79370819,104960.0,104950.0,0.05336529]
[1749936297509,2.79370819,104960.0,104950.0,0.05336527]
[1749936297708,2.79370819,104960.0,104950.0,0.0386]
[1749936298011,0.3401759,104960.0,104950.0,0.24385766]
[1749936298311,0.3401759,104960.0,104950.0,0.35172429]
[1749936298312,1.16994811,104960.0,104950.0,0.35172429]
[1749936298609,1.3951404,104960.0,104950.0,0.33695981]
[1749936298908,1.3951404,104960.0,104950.0,0.35176146]
[1749936299108,0.19122811,104960.0,104950.0,0.35176137]
[1749936299502,0.19122811,104960.0,104950.0,1.47203366]
[1749936299503,0.00075381,104960.0,104950.0,1.47203366]
[1749936299703,0.00014255,104970.0,104960.0,0.1904744]
[1749936299903,0.19059885,104970.0,104960.0,0.31314229]
[1749936300203,0.2380646,104980.0,104970.0,0.1904563]
[1749936300411,0.72183976,104990.0,104980.0,0.1904381]
[1749936300606,0.55003976,104990.0,104980.0,0.2540381]
[1749936300914,1.34043976,104990.0,104980.0,0.29790982]
[1749936301312,0.36103976,104990.0,104980.0,0.65870982]
[1749936301510,1.34223976,104990.0,104980.0,0.65870982]
[1749936301713,1.34223976,104990.0,104980.0,0.29790982]
[1749936301907,1.34323976,104990.0,104980.0,0.29790982]
[1749936302315,0.31443206,104990.0,104980.0,0.7100861]
[1749936302515,0.31443206,104990.0,104980.0,0.75392593]
[1749936302726,0.37955845,105000.0,104980.0,1.03868012]
[1749936302914,0.19055845,105000.0,104990.0,0.6139199]
[1749936303114,0.00014255,105000.0,104990.0,0.86537845]
[1749936303313,0.2855851,105010.0,105000.0,0.1904017]
[1749936303514,0.2855851,105010.0,105000.0,0.6163017]
[1749936303719,0.2855851,105010.0,105000.0,0.7115337]
[1749936304508,0.2885851,105010.0,105000.0,0.7115337]
[1749936305416,0.2885851,105010.0,105000.0,0.9005337]
[1749936306120,0.2885851,105010.0,105000.0,0.9015337]
[1749936306324,0.1933916,105010.0,105000.0,0.9015337]
[1749936306623,0.28570855,105020.0,105010.0,0.1903828]
[1749936306820,1.26722855,105020.0,105010.0,0.2549828]
[1749936307020,0.47466855,105020.0,105010.0,0.2549828]
[1749936307925,0.73830337,105020.0,105010.0,0.2549828]
[1749936308124,0.73830337,105020.0,105010.0,0.2569828]
[1749936309730,0.80000337,105020.0,105010.0,0.2569828]
[1749936314734,0.61104337,105020.0,105010.0,0.2569828]
[1749936315027,0.79996337,105020.0,105010.0,0.2569828]
[1749936315233,0.61104337,105020.0,105010.0,0.2569828]
[1749936315426,0.79996337,105020.0,105010.0,0.2569828]
[1749936316132,0.79996337,105020.0,105010.0,0.2255828]
[1749936318934,0.79996337,105020.0,105010.0,0.30275584]
[1749936319430,0.79996337,105020.0,105010.0,0.2255828]
[1749936321331,0.79996337,105020.0,105010.0,0.1923828]
[1749936324236,0.79996337,105020.0,105010.0,0.27045497]
[1749936325237,0.76130894,105020.0,105010.0,0.27045497]
[1749936329639,0.76130894,105020.0,105010.0,0.31436743]
[1749936330142,0.90335705,105020.0,105010.0,0.31436743]
[1749936333245,1.02020228,105020.0,105010.0,0.31436743]
[1749936333745,0.90335705,105020.0,105010.0,0.31436743]
[1749936334235,1.02020228,105020.0,105010.0,0.31436743]
[1749936336747,0.79522189,105020.0,105010.0,0.31436743]
[1749936336948,1.02020228,105020.0,105010.0,0.31436743]
[1749936340950,1.01768228,105020.0,105010.0,0.31436743]
[1749936342354,1.01768228,105020.0,105010.0,0.35886178]
[1749936342552,1.01768228,105020.0,105010.0,0.31436743]
[1749936343255,1.01768228,105020.0,105010.0,0.35886178]
[1749936343256,0.90083705,105020.0,105010.0,0.35886178]
[1749936344552,1.01768228,105020.0,105010.0,0.35886178]
[1749936344753,1.01768228,105020.0,105010.0,0.31436743]
[1749936350457,1.01768228,105020.0,105010.0,0.67516743]
[1749936350657,0.90083705,105020.0,105010.0,0.67516743]
[1749936350856,0.90083705,105020.0,105010.0,0.12398463]
[1749936351059,0.90083705,105020.0,105010.0,0.31435653]
[1749936351254,1.01768228,105020.0,105010.0,0.31435653]
[1749936356960,1.01768228,105020.0,105010.0,0.27044407]
[1749936357159,1.01768228,105020.0,105010.0,0.31436264]
[1749936357360,1.04580896,105020.0,105010.0,0.31436264]
[1749936359559,1.04580896,105020.0,105010.0,0.12399074]
[1749936359759,0.79270189,105020.0,105010.0,0.31436264]
[1749936359965,1.04580896,105020.0,105010.0,0.31436264]
[1749936361162,1.40660896,105020.0,105010.0,0.04591857]
[1749936361362,1.4087963,105020.0,105010.0,0.002]
[1749936362365,1.4107963,105020.0,105010.0,0.002]
[1749936362764,0.1903719,105010.0,105000.0,0.28572265]
[1749936363065,0.53757897,105010.0,105000.0,0.32964105]
[1749936363265,0.89837897,105010.0,105000.0,0.32964105]
[1749936363463,0.89837897,105010.0,105000.0,0.28204385]
[1749936363658,0.53757897,105010.0,105000.0,0.28204385]
[1749936363856,0.53757897,105010.0,105000.0,0.28404385]
[1749936364071,0.89837897,105010.0,105000.0,0.28404385]
[1749936364261,0.53757897,105010.0,105000.0,0.28404385]
[1749936366471,0.89837897,105010.0,105000.0,0.28404385]
[1749936367271,0.89837897,105010.0,105000.0,0.04606095]
[1749936367472,0.89837897,105010.0,105000.0,0.23645095]
[1749936368174,1.67989897,105010.0,105000.0,0.23645095]
[1749936374180,1.31909897,105010.0,105000.0,0.23645095]
[1749936384287,1.31849897,105010.0,105000.0,0.23645095]
[1749936385487,0.11917512,105020.0,105010.0,0.1903719]
[1749936385784,0.00014255,105020.0,105010.0,0.89279057]
[1749936385992,0.00014255,105020.0,105010.0,1.04781999]
[1749936386388,0.47392457,105040.0,105030.0,0.1903356]
[1749936386592,0.50552457,105040.0,105030.0,0.84812121]
[1749936386789,0.44342457,105040.0,105030.0,0.87912121]
[1749936386983,0.44342457,105040.0,105030.0,0.94452121]
[1749936387287,0.1903175,105040.0,105030.0,0.69141414]
[1749936387691,0.1943175,105040.0,105030.0,0.69141414]
[1749936388287,0.1993175,105040.0,105030.0,0.91625575]
[1749936388794,0.009,105040.0,105030.0,1.34047506]
[1749936389090,0.008,105040.0,105030.0,1.34047506]
[1749936389686,0.19044355,105050.0,105040.0,0.1903175]
[1749936389886,0.19044355,105050.0,105040.0,0.84251604]
[1749936390189,0.19044355,105050.0,105040.0,0.84233116]
[1749936390791,0.19044355,105050.0,105040.0,0.84433116]
[1749936391287,0.19044355,105050.0,105040.0,0.84533116]
[1749936393304,0.19044355,105050.0,105040.0,0.8016375]
[1749936393589,0.4163091,105070.0,105060.0,0.1902813]
[1749936393795,0.34985598,105070.0,105060.0,0.19178892]
[1749936393995,0.34985598,105070.0,105060.0,0.37534892]
[1749936394399,0.57469759,105070.0,105060.0,0.76844892]
[1749936394605,0.56996791,105070.0,105060.0,0.76844892]
[1749936395191,0.3451263,105070.0,105060.0,0.76844892]
[1749936395597,0.56996791,105070.0,105060.0,0.76844892]
[1749936395798,0.3451263,105070.0,105060.0,0.76844892]
[1749936396794,0.3451263,105070.0,105060.0,0.77144892]
[1749936397300,0.2835263,105070.0,105060.0,0.77144892]
[1749936397492,0.2835263,105070.0,105060.0,0.80184892]
[1749936398798,0.3139263,105070.0,105060.0,0.80184892]
[1749936400998,0.3457263,105070.0,105060.0,0.80184892]
[1749936403204,0.3457263,105070.0,105060.0,0.73910892]
[1749936404703,0.2524633,105070.0,105060.0,0.73910892]
[1749936404907,0.2524633,105070.0,105060.0,0.77190892]
[1749936405598,0.2524633,105070.0,105060.0,0.58838892]
[1749936405797,0.2524633,105070.0,105060.0,0.77190892]
[1749936409318,0.00014255,105080.0,105070.0,0.1902633]
[1749936409519,0.22168765,105080.0,105070.0,0.5842633]
[1749936409823,0.25268765,105080.0,105070.0,0.58501711]
[1749936410119,0.06244255,105080.0,105070.0,0.58501711]
[1749936410328,0.06244255,105080.0,105070.0,0.80985872]
[1749936410623,0.06244255,105080.0,105070.0,1.05647872]
[1749936410821,0.25268775,105080.0,105070.0,0.64811711]
[1749936411022,0.06244255,105080.0,105070.0,0.83163711]
[1749936412123,0.1902415,105090.0,105080.0,0.1902451]
[1749936412323,0.0301,105090.0,105080.0,0.55179891]
[1749936412522,0.0301,105090.0,105080.0,0.80984052]
[1749936412824,0.220327,105090.0,105080.0,0.80984052]
[1749936413026,0.220327,105090.0,105080.0,0.84234052]
[1749936413224,0.251227,105090.0,105080.0,0.99332052]
[1749936413425,0.061,105090.0,105080.0,0.99332052]
[1749936413624,0.061,105090.0,105080.0,0.81401644]
[1749936413821,0.061,105090.0,105080.0,0.81980694]
[1749936414018,0.061,105090.0,105080.0,1.00211102]
[1749936414218,0.061,105090.0,105080.0,1.07816825]
[1749936415221,0.03344255,105100.0,105090.0,0.190227]
[1749936415222,0.00014255,105100.0,105090.0,0.190227]
[1749936415423,0.03314255,105100.0,105090.0,1.77204242]
[1749936415727,0.03314255,105100.0,105090.0,1.87871095]
[1749936416118,0.0317,105110.0,105100.0,0.190209]
[1749936416321,0.2546909,105110.0,105100.0,0.59457753]
[1749936416525,0.0645,105110.0,105100.0,0.77881134]
[1749936417225,0.0665,105110.0,105100.0,0.77881134]
[1749936417426,0.0675,105110.0,105100.0,1.03675295]
[1749936418730,0.0675,105110.0,105100.0,0.81191134]
[1749936419318,0.003,105110.0,105100.0,1.06755295]
[1749936419525,0.06229504,105120.0,105110.0,0.1901909]
[1749936419734,0.0631,105130.0,105120.0,0.1901728]
[1749936420025,0.2532547,105130.0,105120.0,0.77865853]
[1749936420424,0.2532547,105130.0,105120.0,0.59521853]
[1749936420626,0.2532547,105130.0,105120.0,1.56333853]
[1749936420928,0.17874955,105140.0,105130.0,0.1901547]
[1749936420929,0.32136075,105140.0,105130.0,0.1901547]
[1749936421117,0.38446075,105140.0,105130.0,0.19090851]
[1749936421526,0.38446075,105140.0,105130.0,0.58450851]
[1749936421727,0.3803224,105140.0,105130.0,0.58450851]
[1749936421929,0.3007854,105140.0,105130.0,0.58450851]
[1749936422126,0.0631,105140.0,105130.0,0.80935012]
[1749936422322,0.0631,105140.0,105130.0,0.88922788]
[1749936422626,0.0631,105140.0,105130.0,0.89222788]
[1749936422822,0.0631,105140.0,105130.0,0.92362788]
[1749936423018,0.0631,105140.0,105130.0,0.94212863]
[1749936423224,0.32183235,105150.0,105140.0,0.1901366]
[1749936423419,0.38543235,105150.0,105140.0,0.7343766]
[1749936423627,0.2537327,105150.0,105140.0,0.7343766]
[1749936423831,0.2537185,105150.0,105140.0,0.73513041]
[1749936424224,0.0636,105150.0,105140.0,0.73513041]
[1749936424422,0.0636,105150.0,105140.0,1.52097041]
[1749936424925,0.0636,105150.0,105140.0,1.55417041]
[1749936425126,0.0636,105150.0,105140.0,0.58989041]
[1749936425327,0.0636,105150.0,105140.0,1.78649202]
[1749936426523,0.0636,105150.0,105140.0,1.81899202]
[1749936427228,0.3220005,105160.0,105150.0,0.1901185]
[1749936427417,0.2220005,105160.0,105150.0,0.5813185]
[1749936427824,0.2220005,105160.0,105150.0,0.58207231]
[1749936428323,0.0319,105160.0,105150.0,0.61377231]
[1749936428632,0.0319,105160.0,105150.0,0.64647231]
[1749936428927,0.9485051,105170.0,105160.0,0.1901004]
[1749936429122,0.25764161,105170.0,105160.0,0.5509004]
[1749936429426,0.0328,105170.0,105160.0,0.73741421]
[1749936429624,0.25764161,105170.0,105160.0,0.73741421]
[1749936430319,0.31894161,105170.0,105160.0,0.73741421]
[1749936430522,0.0941,105170.0,105160.0,0.73741421]
[1749936431520,0.0951,105170.0,105160.0,0.73741421]
[1749936431722,0.0961,105170.0,105160.0,0.73741421]
[1749936432218,0.002,105170.0,105160.0,1.74777582]
[1749936432527,0.002,105170.0,105160.0,1.81207582]
[1749936432726,1.00895161,105200.0,105190.0,0.1900464]
[1749936432921,1.05646061,105200.0,105190.0,0.1900464]
[1749936433120,1.19858951,105200.0,105190.0,0.19080021]
[1749936433328,1.01860661,105200.0,105190.0,0.19080021]
[1749936433634,0.65780661,105200.0,105190.0,0.55160021]
[1749936433926,0.432965,105200.0,105190.0,0.55160021]
[1749936434231,0.59437591,105200.0,105190.0,0.73736021]
[1749936434621,0.59437591,105200.0,105190.0,0.73811402]
[1749936434622,0.40434761,105200.0,105190.0,0.73811402]
[1749936434828,0.59637591,105200.0,105190.0,0.73811402]
[1749936435123,0.59837591,105200.0,105190.0,0.76891402]
[1749936435321,0.59259881,105200.0,105190.0,0.76891402]
[1749936435520,0.0356,105200.0,105190.0,0.80091402]
[1749936435727,0.004,105200.0,105190.0,0.61515402]
[1749936435925,0.004,105200.0,105190.0,0.83217402]
[1749936436434,0.004,105200.0,105190.0,1.05701563]
[1749936436728,0.004,105200.0,105190.0,0.83217402]
[1749936437027,0.0613,105220.0,105210.0,0.1900103]
[1749936437222,0.2512922,105220.0,105210.0,0.3757303]
[1749936437423,0.41483381,105220.0,105210.0,0.7984303]
[1749936437625,0.22484161,105220.0,105210.0,0.83048411]
[1749936437820,0.41483381,105220.0,105210.0,0.83048411]
[1749936438017,0.55782411,105230.0,105220.0,0.1899922]
[1749936438230,0.55782411,105230.0,105220.0,0.37646601]
[1749936438429,0.55782411,105230.0,105220.0,0.76746601]
[1749936438928,0.55782411,105230.0,105220.0,0.61284601]
[1749936439119,0.55782411,105230.0,105220.0,0.79856601]
[1749936439320,0.56682411,105230.0,105220.0,0.79856601]
[1749936439929,0.2944865,105230.0,105220.0,0.79856601]
[1749936440829,0.2854865,105230.0,105220.0,0.79956601]
[1749936441021,0.2854865,105230.0,105220.0,0.61384601]
[1749936441227,0.2854865,105230.0,105220.0,0.79956601]
[1749936441532,0.51032811,105230.0,105220.0,0.79956601]
[1749936441833,0.51032811,105230.0,105220.0,0.79952601]
[1749936442821,0.51032811,105230.0,105220.0,0.55254601]
[1749936443027,1.35380526,105230.0,105210.0,0.00014255]
[1749936443227,0.1900283,105200.0,105190.0,0.00075381]
[1749936443531,1.329463,105200.0,105190.0,0.00075381]
[1749936443729,2.69803871,105200.0,105170.0,0.0475204]
[1749936443937,0.41490601,105180.0,105170.0,0.2376016]
[1749936444231,0.77570601,105180.0,105170.0,0.2376016]
[1749936444426,0.1900825,105170.0,105160.0,0.00014255]
[1749936444623,0.77572411,105170.0,105160.0,0.00014255]
[1749936444825,0.1901186,105150.0,105130.0,0.14467095]
[1749936445029,0.41497831,105140.0,105130.0,0.25580402]
[1749936445222,0.1901548,105130.0,105120.0,0.9414677]
[1749936445531,0.453228,105130.0,105120.0,0.5509613]
[1749936445726,0.1901729,105120.0,105110.0,0.69583831]
[1749936446026,0.4532461,105120.0,105110.0,0.85041831]
[1749936446329,0.00014255,105140.0,105130.0,0.1901548]
[1749936446525,0.00014255,105140.0,105130.0,0.9117548]
[1749936446826,0.8614939,105170.0,105160.0,0.1901005]
[1749936447024,0.0316,105170.0,105160.0,0.1901005]
[1749936447227,0.8095932,105190.0,105180.0,0.1900644]
[1749936447433,1.0312395,105190.0,105180.0,0.1900644]
[1749936447631,0.8455195,105190.0,105180.0,0.1900644]
[1749936447831,1.0312395,105190.0,105180.0,0.1900644]
[1749936448528,0.8455195,105190.0,105180.0,0.1900644]
[1749936448729,1.0312395,105190.0,105180.0,0.1900644]
[1749936449037,1.0312395,105190.0,105180.0,0.1940644]
[1749936449231,0.7681663,105190.0,105180.0,0.1940644]
[1749936449533,1.0312395,105190.0,105180.0,0.1940644]
[1749936449927,0.1900644,105180.0,105170.0,0.00014255]
[1749936450126,1.80791604,105180.0,105170.0,0.00014255]
[1749936450331,1.95036726,105180.0,105170.0,0.00014255]
[1749936451032,1.95036726,105180.0,105170.0,0.00414255]
[1749936451632,1.95036726,105180.0,105170.0,0.00014255]
[1749936451831,1.68729406,105180.0,105170.0,0.00014255]
[1749936452026,1.95036726,105180.0,105170.0,0.00314255]
[1749936452931,1.95036726,105180.0,105170.0,0.00014255]
[1749936454430,0.25094966,105180.0,105170.0,0.19022495]
[1749936454826,0.44101396,105180.0,105170.0,0.25502495]
[1749936455028,0.14245122,105180.0,105170.0,0.25502495]
[1749936455330,0.33251562,105180.0,105170.0,0.25502495]
[1749936455628,0.40552442,105180.0,105170.0,0.25502495]
[1749936455833,0.40752442,105180.0,105170.0,0.25602495]
[1749936456032,0.14445122,105180.0,105170.0,0.25602495]
[1749936456233,0.40752442,105180.0,105170.0,0.25602495]
[1749936456437,0.59758882,105180.0,105170.0,0.25502495]
[1749936456734,0.59758882,105180.0,105170.0,0.25802495]